[Event "British Rapidplay Championship 2023"]
[Site "Mercure Bradford, Bankfield Hotel"]
[Date "2023.04.16"]
[Round "10.22"]
[White "Slinger, AJ (Tony)"]
[Black "Bak, Christopher"]
[Result "0-1"]
[TimeControl "15 minutes plus 10 seconds per move"]
[WhiteElo "1841"]
[BlackElo "2116"]

1. c4 {[%clk 00:15:19]} {[%emt 00:00:01]} c5 {[%clk 00:15:18]} {[%emt
00:00:02]} 2. Nf3 {[%clk 00:15:15]} {[%emt 00:00:13]} Nc6 {[%clk 00:15:22]}
{[%emt 00:00:06]} 3. Nc3 {[%clk 00:15:24]} {[%emt 00:00:01]} Nf6 {[%clk
00:15:17]} {[%emt 00:00:15]} 4. g3 {[%clk 00:15:09]} {[%emt 00:00:24]} g6
{[%clk 00:15:14]} {[%emt 00:00:14]} 5. Bg2 {[%clk 00:15:18]} {[%emt 00:00:01]}
Bg7 {[%clk 00:15:22]} {[%emt 00:00:01]} 6. O-O {[%clk 00:15:26]} {[%emt
00:00:03]} d6 {[%clk 00:15:09]} {[%emt 00:00:23]} 7. d3 {[%clk 00:14:47]}
{[%emt 00:00:49]} O-O {[%clk 00:15:09]} {[%emt 00:00:09]} 8. Rb1 {[%clk
00:14:55]} {[%emt 00:00:02]} Ne8 {[%clk 00:12:18]} {[%emt 00:03:02]} 9. Bd2
{[%clk 00:14:21]} {[%emt 00:00:43]} Nc7 {[%clk 00:12:20]} {[%emt 00:00:08]} 10.
a3 {[%clk 00:14:22]} {[%emt 00:00:11]} a5 {[%clk 00:12:27]} {[%emt 00:00:02]}
11. Nd5 {[%clk 00:12:02]} {[%emt 00:02:29]} Be6 {[%clk 00:08:40]} {[%emt
00:03:58]} 12. Nxc7 {[%clk 00:08:26]} {[%emt 00:03:46]} Qxc7 {[%clk 00:08:47]}
{[%emt 00:00:02]} 13. Bc3 {[%clk 00:08:35]} {[%emt 00:00:01]} d5 {[%clk
00:08:18]} {[%emt 00:00:39]} 14. Bxg7 {[%clk 00:08:40]} {[%emt 00:00:05]} Kxg7
{[%clk 00:08:26]} {[%emt 00:00:03]} 15. cxd5 {[%clk 00:08:24]} {[%emt
00:00:26]} Bxd5 {[%clk 00:08:32]} {[%emt 00:00:04]} 16. Rc1 {[%clk 00:06:43]}
{[%emt 00:01:51]} b6 {[%clk 00:08:03]} {[%emt 00:00:39]} 17. Nd2 {[%clk
00:05:55]} {[%emt 00:00:57]} Bxg2 {[%clk 00:07:45]} {[%emt 00:00:28]} 18. Kxg2
{[%clk 00:06:04]} {[%emt 00:00:01]} Rfd8 {[%clk 00:07:47]} {[%emt 00:00:07]} 19.
Kg1 {[%clk 00:05:56]} {[%emt 00:00:18]} Rab8 {[%clk 00:07:17]} {[%emt
00:00:41]} 20. Nf3 {[%clk 00:05:57]} {[%emt 00:00:09]} Qd6 {[%clk 00:07:14]}
{[%emt 00:00:13]} 21. Qc2 {[%clk 00:06:00]} {[%emt 00:00:06]} Kg8 {[%clk
00:07:03]} {[%emt 00:00:22]} 22. Qc3 {[%clk 00:05:06]} {[%emt 00:01:04]} Qe6
{[%clk 00:06:59]} {[%emt 00:00:14]} 23. Rfe1 {[%clk 00:05:10]} {[%emt
00:00:06]} Rbc8 {[%clk 00:06:59]} {[%emt 00:00:10]} 24. Qc4 {[%clk 00:05:12]}
{[%emt 00:00:07]} Rd6 {[%clk 00:06:14]} {[%emt 00:00:55]} 25. Qxe6 {[%clk
00:05:06]} {[%emt 00:00:16]} Rxe6 {[%clk 00:06:22]} {[%emt 00:00:02]} 26. Kf1
{[%clk 00:05:08]} {[%emt 00:00:09]} Rd8 {[%clk 00:06:27]} {[%emt 00:00:06]} 27.
h4 {[%clk 00:04:49]} {[%emt 00:00:28]} h6 {[%clk 00:06:23]} {[%emt 00:00:13]}
28. Rc3 {[%clk 00:04:27]} {[%emt 00:00:33]} Kg7 {[%clk 00:06:27]} {[%emt
00:00:07]} 29. Rec1 {[%clk 00:04:14]} {[%emt 00:00:22]} f6 {[%clk 00:05:35]}
{[%emt 00:01:03]} 30. Rc4 {[%clk 00:04:09]} {[%emt 00:00:15]} g5 {[%clk
00:05:26]} {[%emt 00:00:18]} 31. hxg5 {[%clk 00:04:16]} {[%emt 00:00:03]} hxg5
{[%clk 00:05:34]} {[%emt 00:00:02]} 32. g4 {[%clk 00:03:27]} {[%emt 00:00:59]}
Rh8 {[%clk 00:05:28]} {[%emt 00:00:16]} 33. R4c2 {[%clk 00:03:14]} {[%emt
00:00:22]} Rh1+ {[%clk 00:05:29]} {[%emt 00:00:09]} 34. Kg2 {[%clk 00:03:22]}
{[%emt 00:00:02]} Rxc1 {[%clk 00:05:34]} {[%emt 00:00:06]} 35. Rxc1 {[%clk
00:03:31]} {[%emt 00:00:01]} Rxe2 {[%clk 00:05:34]} {[%emt 00:00:09]} 36. Rb1
{[%clk 00:03:20]} {[%emt 00:00:21]} Rc2 {[%clk 00:04:25]} {[%emt 00:01:19]} 37.
Kf1 {[%clk 00:02:44]} {[%emt 00:00:47]} Kf7 {[%clk 00:03:55]} {[%emt 00:00:40]}
38. Ke1 {[%clk 00:02:52]} {[%emt 00:00:02]} Nd4 {[%clk 00:03:50]} {[%emt
00:00:15]} 39. Nxd4 {[%clk 00:02:57]} {[%emt 00:00:06]} cxd4 {[%clk 00:03:58]}
{[%emt 00:00:01]} 40. b4 {[%clk 00:02:29]} {[%emt 00:00:38]} a4 {[%clk
00:04:06]} {[%emt 00:00:02]} 41. b5 {[%clk 00:02:38]} {[%emt 00:00:01]} Rc3
{[%clk 00:04:07]} {[%emt 00:00:09]} 42. Rb4 {[%clk 00:02:36]} {[%emt 00:00:12]}
Rxa3 {[%clk 00:04:04]} {[%emt 00:00:13]} 43. Rxd4 {[%clk 00:02:45]} {[%emt
00:00:02]} Ra2 {[%clk 00:04:05]} {[%emt 00:00:09]} 44. Rc4 {[%clk 00:02:43]}
{[%emt 00:00:11]} a3 {[%clk 00:03:56]} {[%emt 00:00:19]} 45. Ra4 {[%clk
00:02:51]} {[%emt 00:00:01]} Ke6 {[%clk 00:04:02]} {[%emt 00:00:05]} 46. Ra6
{[%clk 00:02:58]} {[%emt 00:00:03]} Kd5 {[%clk 00:04:05]} {[%emt 00:00:07]} 47.
Rxb6 {[%clk 00:03:07]} {[%emt 00:00:02]} Rb2 {[%clk 00:04:10]} {[%emt
00:00:05]} 48. Ra6 {[%clk 00:03:04]} {[%emt 00:00:13]} a2 {[%clk 00:04:18]}
{[%emt 00:00:02]} 0-1

[Event "British Rapidplay Championship 2023"]
[Site "Mercure Bradford, Bankfield Hotel"]
[Date "2023.04.16"]
[Round "10.23"]
[White "Patrick, Chaski"]
[Black "Lloyd, Stephen M"]
[Result "1-0"]
[TimeControl "15 minutes plus 10 seconds per move"]
[WhiteElo "2032"]
[BlackElo "1742"]

1. e4 {[%clk 00:15:19]} c5 {[%clk 00:15:19]} {[%emt 00:00:02]} 2. Nf3 {[%clk
00:15:27]} {[%emt 00:00:01]} g6 {[%clk 00:15:27]} {[%emt 00:00:02]} 3. Bc4
{[%clk 00:15:34]} {[%emt 00:00:02]} Bg7 {[%clk 00:15:27]} {[%emt 00:00:10]} 4.
O-O {[%clk 00:15:41]} {[%emt 00:00:03]} Nc6 {[%clk 00:15:35]} {[%emt 00:00:03]}
5. c3 {[%clk 00:15:49]} {[%emt 00:00:01]} d6 {[%clk 00:15:31]} {[%emt
00:00:15]} 6. Qe2 {[%clk 00:15:23]} {[%emt 00:00:35]} Nf6 {[%clk 00:14:48]}
{[%emt 00:00:54]} 7. h3 {[%clk 00:15:30]} {[%emt 00:00:02]} O-O {[%clk
00:14:52]} {[%emt 00:00:07]} 8. d4 {[%clk 00:15:36]} {[%emt 00:00:04]} cxd4
{[%clk 00:14:53]} {[%emt 00:00:09]} 9. cxd4 {[%clk 00:15:44]} {[%emt 00:00:02]}
Bd7 {[%clk 00:14:46]} {[%emt 00:00:17]} 10. Nc3 {[%clk 00:15:47]} {[%emt
00:00:07]} a6 {[%clk 00:14:50]} {[%emt 00:00:07]} 11. e5 {[%clk 00:15:33]}
{[%emt 00:00:23]} dxe5 {[%clk 00:14:40]} {[%emt 00:00:20]} 12. dxe5 {[%clk
00:15:42]} {[%emt 00:00:01]} Ne8 {[%clk 00:13:34]} {[%emt 00:01:16]} 13. Rd1
{[%clk 00:14:40]} {[%emt 00:01:11]} e6 {[%clk 00:12:48]} {[%emt 00:00:58]} 14.
Qd3 {[%clk 00:14:11]} {[%emt 00:00:38]} Nb8 {[%clk 00:11:13]} {[%emt 00:01:45]}
15. Bg5 {[%clk 00:14:08]} {[%emt 00:00:13]} Qb6 {[%clk 00:10:36]} {[%emt
00:00:48]} 16. Be7 {[%clk 00:13:40]} {[%emt 00:00:36]} Bc6 {[%clk 00:10:16]}
{[%emt 00:00:30]} 17. Ne4 {[%clk 00:12:03]} {[%emt 00:01:46]} Nd7 {[%clk
00:10:05]} {[%emt 00:00:22]} 18. Bxf8 {[%clk 00:11:22]} {[%emt 00:00:50]} Bxf8
{[%clk 00:09:36]} {[%emt 00:00:41]} 19. Neg5 {[%clk 00:09:58]} {[%emt
00:01:34]} Bxf3 {[%clk 00:08:46]} {[%emt 00:00:59]} 20. Qxd7 {[%clk 00:09:48]}
{[%emt 00:00:20]} Qc7 {[%clk 00:07:44]} {[%emt 00:01:12]} 21. Qxc7 {[%clk
00:09:33]} {[%emt 00:00:25]} Nxc7 {[%clk 00:07:53]} {[%emt 00:00:02]} 22. gxf3
{[%clk 00:09:30]} {[%emt 00:00:12]} Rc8 {[%clk 00:07:31]} {[%emt 00:00:33]} 23.
Rd7 {[%clk 00:09:19]} {[%emt 00:00:20]} 1-0

[ePGN "0.1;DGT LiveChess/2.2.5"]

[Event "British Rapidplay Championship 2023"]
[Site "Mercure Bradford, Bankfield Hotel"]
[Date "2023.04.16"]
[Round "11.1"]
[White "Ashton, Adam G"]
[Black "Ghasi, Ameet K"]
[Result "0-1"]
[TimeControl "15 minutes plus 10 seconds per move"]
[WhiteElo "2390"]
[BlackElo "2631"]

1. e4 {[%clk 00:15:16]} {[%emt 00:00:03]} c5 {[%clk 00:14:36]} {[%emt
00:00:45]} 2. Nf3 {[%clk 00:15:15]} {[%emt 00:00:11]} e6 {[%clk 00:14:44]}
{[%emt 00:00:01]} 3. g3 {[%clk 00:13:53]} {[%emt 00:01:32]} b6 {[%clk
00:14:52]} {[%emt 00:00:02]} 4. Bg2 {[%clk 00:13:52]} {[%emt 00:00:11]} Bb7
{[%clk 00:15:00]} {[%emt 00:00:02]} 5. Qe2 {[%clk 00:12:47]} {[%emt 00:01:15]}
Nc6 {[%clk 00:13:53]} {[%emt 00:01:17]} 6. O-O {[%clk 00:12:34]} {[%emt
00:00:22]} Rc8 {[%clk 00:13:50]} {[%emt 00:00:14]} 7. c3 {[%clk 00:11:44]}
{[%emt 00:01:00]} Nf6 {[%clk 00:13:39]} {[%emt 00:00:22]} 8. Rd1 {[%clk
00:11:18]} {[%emt 00:00:35]} c4 {[%clk 00:09:55]} {[%emt 00:03:55]} 9. e5
{[%clk 00:08:57]} {[%emt 00:02:30]} Nd5 {[%clk 00:09:10]} {[%emt 00:00:55]} 10.
b3 {[%clk 00:08:39]} {[%emt 00:00:28]} b5 {[%clk 00:06:58]} {[%emt 00:02:22]}
11. bxc4 {[%clk 00:06:31]} {[%emt 00:02:18]} bxc4 {[%clk 00:07:07]} {[%emt
00:00:02]} 12. Ba3 {[%clk 00:04:56]} {[%emt 00:01:44]} Bxa3 {[%clk 00:07:14]}
{[%emt 00:00:03]} 13. Nxa3 {[%clk 00:05:05]} {[%emt 00:00:01]} Ba6 {[%clk
00:07:23]} {[%emt 00:00:01]} 14. Qe4 {[%clk 00:04:26]} {[%emt 00:00:49]} O-O
{[%clk 00:05:33]} {[%emt 00:02:00]} 15. Nxc4 {[%clk 00:01:35]} {[%emt
00:03:01]} Bxc4 {[%clk 00:05:21]} {[%emt 00:00:22]} 16. Qxc4 {[%clk 00:01:44]}
{[%emt 00:00:01]} Nxe5 {[%clk 00:05:28]} {[%emt 00:00:04]} 17. Qa6 {[%clk
00:01:22]} {[%emt 00:00:32]} Nc6 {[%clk 00:04:40]} {[%emt 00:00:58]} 18. Rab1
{[%clk 00:01:23]} {[%emt 00:00:08]} Nde7 {[%clk 00:03:12]} {[%emt 00:01:38]} 19.
Rb7 {[%clk 00:01:13]} {[%emt 00:00:21]} d5 {[%clk 00:02:49]} {[%emt 00:00:33]}
20. Rdb1 {[%clk 00:01:14]} {[%emt 00:00:08]} Nf5 {[%clk 00:02:55]} {[%emt
00:00:04]} 21. Qa4 {[%clk 00:01:04]} {[%emt 00:00:20]} Nd6 {[%clk 00:02:58]}
{[%emt 00:00:08]} 22. R7b3 {[%clk 00:01:01]} {[%emt 00:00:13]} Nc4 {[%clk
00:02:23]} {[%emt 00:00:44]} 23. d3 {[%clk 00:01:00]} {[%emt 00:00:10]} Nb6
{[%clk 00:02:28]} {[%emt 00:00:05]} 24. Qh4 {[%clk 00:00:51]} {[%emt 00:00:20]}
Qxh4 {[%clk 00:02:33]} {[%emt 00:00:05]} 25. Nxh4 {[%clk 00:01:00]} {[%emt
00:00:02]} Ne5 {[%clk 00:02:35]} {[%emt 00:00:08]} 26. Rd1 {[%clk 00:00:38]}
{[%emt 00:00:31]} Na4 {[%clk 00:02:19]} {[%emt 00:00:26]} 27. d4 {[%clk
00:00:26]} {[%emt 00:00:23]} Nc4 {[%clk 00:02:24]} {[%emt 00:00:04]} 28. Nf3
{[%clk 00:00:33]} {[%emt 00:00:03]} Rc7 {[%clk 00:01:25]} {[%emt 00:01:09]} 29.
Rc1 {[%clk 00:00:16]} {[%emt 00:00:27]} Nd6 {[%clk 00:01:03]} {[%emt 00:00:32]}
30. Ra3 {[%clk 00:00:20]} {[%emt 00:00:06]} Nb6 {[%clk 00:01:11]} {[%emt
00:00:03]} 31. Ne5 {[%clk 00:00:20]} {[%emt 00:00:09]} Nb5 {[%clk 00:01:17]}
{[%emt 00:00:04]} 32. Nf3 {[%emt 00:00:29]} Nd6 {[%emt 00:00:02]} 33. Bf1
{[%emt 00:01:31]} 0-1

[Event "British Rapidplay Championship 2023"]
[Site "Mercure Bradford, Bankfield Hotel"]
[Date "2023.04.16"]
[Round "11.2"]
[White "Makkar, Rajat"]
[Black "Dong, Bao Nghia"]
[Result "1/2-1/2"]
[TimeControl "15 minutes plus 10 seconds per move"]
[WhiteElo "2297"]
[BlackElo "2331"]

1. d4 {[%clk 00:15:18]} {[%emt 00:00:02]} Nf6 {[%clk 00:15:18]} {[%emt
00:00:02]} 2. c4 {[%clk 00:15:25]} {[%emt 00:00:02]} g6 {[%clk 00:15:26]}
{[%emt 00:00:01]} 3. Nc3 {[%clk 00:15:33]} {[%emt 00:00:03]} d6 {[%clk
00:15:35]} 4. e4 {[%clk 00:15:41]} {[%emt 00:00:03]} Bg7 {[%clk 00:15:44]}
{[%emt 00:00:01]} 5. h3 {[%clk 00:15:49]} {[%emt 00:00:01]} O-O {[%clk
00:15:50]} {[%emt 00:00:04]} 6. Be3 {[%clk 00:15:57]} {[%emt 00:00:02]} Nbd7
{[%clk 00:15:59]} {[%emt 00:00:02]} 7. g4 {[%clk 00:16:03]} {[%emt 00:00:04]}
e5 {[%clk 00:16:01]} {[%emt 00:00:07]} 8. d5 {[%clk 00:15:51]} {[%emt
00:00:22]} Nc5 {[%clk 00:14:47]} {[%emt 00:01:24]} 9. f3 {[%clk 00:15:57]}
{[%emt 00:00:05]} a5 {[%clk 00:14:51]} {[%emt 00:00:06]} 10. Qd2 {[%clk
00:15:52]} {[%emt 00:00:15]} Bd7 {[%clk 00:13:07]} {[%emt 00:01:54]} 11. Nge2
{[%clk 00:15:46]} {[%emt 00:00:16]} Ne8 {[%clk 00:11:31]} {[%emt 00:01:46]} 12.
h4 {[%clk 00:14:41]} {[%emt 00:01:15]} f5 {[%clk 00:11:32]} {[%emt 00:00:08]}
13. gxf5 {[%clk 00:14:12]} {[%emt 00:00:39]} gxf5 {[%clk 00:11:41]} {[%emt
00:00:02]} 14. Bg5 {[%clk 00:12:45]} {[%emt 00:01:37]} Bf6 {[%clk 00:11:45]}
{[%emt 00:00:05]} 15. Ng3 {[%clk 00:11:24]} {[%emt 00:01:31]} 1/2-1/2

[Event "British Rapidplay Championship 2023"]
[Site "Mercure Bradford, Bankfield Hotel"]
[Date "2023.04.16"]
[Round "11.3"]
[White "Khoury, Theo"]
[Black "Gormally, Daniel W"]
[Result "0-1"]
[TimeControl "15 minutes plus 10 seconds per move"]
[WhiteElo "1772"]
[BlackElo "2570"]

1. e4 {[%clk 00:15:17]} {[%emt 00:00:02]} c5 {[%clk 00:15:19]} {[%emt
00:00:02]} 2. c3 {[%clk 00:15:25]} {[%emt 00:00:01]} d5 {[%clk 00:15:24]}
{[%emt 00:00:06]} 3. exd5 {[%clk 00:15:33]} {[%emt 00:00:02]} Qxd5 {[%clk
00:15:32]} {[%emt 00:00:01]} 4. d4 {[%clk 00:15:42]} {[%emt 00:00:01]} Nf6
{[%clk 00:15:41]} {[%emt 00:00:02]} 5. Nf3 {[%clk 00:15:50]} {[%emt 00:00:02]}
e6 {[%clk 00:15:49]} 6. Na3 {[%clk 00:15:59]} {[%emt 00:00:01]} a6 {[%clk
00:14:34]} {[%emt 00:01:26]} 7. Bc4 {[%clk 00:14:28]} {[%emt 00:01:41]} Qe4+
{[%clk 00:14:35]} {[%emt 00:00:09]} 8. Qe2 {[%clk 00:14:19]} {[%emt 00:00:18]}
cxd4 {[%clk 00:14:33]} {[%emt 00:00:13]} 9. cxd4 {[%clk 00:13:14]} {[%emt
00:01:16]} Bb4+ {[%clk 00:14:33]} {[%emt 00:00:09]} 10. Bd2 {[%clk 00:12:44]}
{[%emt 00:00:40]} Bxd2+ {[%clk 00:14:35]} {[%emt 00:00:08]} 11. Nxd2 {[%clk
00:12:41]} {[%emt 00:00:13]} Qxd4 {[%clk 00:13:42]} {[%emt 00:01:03]} 12. O-O-O
{[%clk 00:12:44]} {[%emt 00:00:06]} O-O {[%clk 00:12:56]} {[%emt 00:00:57]} 13.
h4 {[%clk 00:12:32]} {[%emt 00:00:22]} Nc6 {[%clk 00:12:22]} {[%emt 00:00:44]}
14. Nc2 {[%clk 00:12:04]} {[%emt 00:00:38]} Qe5 {[%clk 00:11:15]} {[%emt
00:01:17]} 15. Qf3 {[%clk 00:12:05]} {[%emt 00:00:07]} Qc5 {[%clk 00:11:10]}
{[%emt 00:00:17]} 16. Kb1 {[%clk 00:11:13]} {[%emt 00:01:02]} Ne5 {[%clk
00:10:38]} {[%emt 00:00:42]} 17. Qc3 {[%clk 00:10:47]} {[%emt 00:00:36]} b5
{[%clk 00:10:24]} {[%emt 00:00:24]} 18. Be2 {[%clk 00:10:41]} {[%emt 00:00:15]}
Qxc3 {[%clk 00:10:32]} {[%emt 00:00:02]} 19. bxc3 {[%clk 00:10:49]} {[%emt
00:00:02]} Bb7 {[%clk 00:10:38]} {[%emt 00:00:05]} 20. Ne3 {[%clk 00:10:44]}
{[%emt 00:00:15]} Rac8 {[%clk 00:10:25]} {[%emt 00:00:23]} 21. Kb2 {[%clk
00:10:33]} {[%emt 00:00:20]} Rfd8 {[%clk 00:10:11]} {[%emt 00:00:25]} 22. Nb3
{[%emt 00:01:25]} Ne4 {[%clk 00:09:33]} 23. f4 {[%clk 00:08:52]} {[%emt
00:01:23]} Rxd1 {[%clk 00:08:27]} {[%emt 00:01:17]} 24. Rxd1 {[%clk 00:08:33]}
{[%emt 00:00:27]} Nxc3 {[%clk 00:08:33]} {[%emt 00:00:05]} 25. fxe5 {[%clk
00:08:12]} {[%emt 00:00:31]} Nxe2 {[%clk 00:08:17]} {[%emt 00:00:26]} 26. Rd7
{[%clk 00:08:16]} {[%emt 00:00:05]} Bc6 {[%clk 00:08:08]} {[%emt 00:00:20]} 27.
Ra7 {[%clk 00:08:16]} {[%emt 00:00:10]} h5 {[%clk 00:07:58]} {[%emt 00:00:20]}
28. Rxa6 {[%clk 00:08:06]} {[%emt 00:00:20]} Nf4 {[%clk 00:07:50]} {[%emt
00:00:17]} 29. Nd4 {[%clk 00:07:05]} {[%emt 00:01:12]} Nd3+ {[%clk 00:07:53]}
{[%emt 00:00:07]} 30. Kb1 {[%clk 00:06:53]} {[%emt 00:00:23]} Be4 {[%clk
00:07:56]} {[%emt 00:00:07]} 31. Ndc2 {[%clk 00:06:20]} {[%emt 00:00:42]} Nb4
{[%clk 00:07:57]} {[%emt 00:00:09]} 0-1

[Event "British Rapidplay Championship 2023"]
[Site "Mercure Bradford, Bankfield Hotel"]
[Date "2023.04.16"]
[Round "11.4"]
[White "Wells, Peter K"]
[Black "Mosnegutu, Klauss"]
[Result "0-1"]
[TimeControl "15 minutes plus 10 seconds per move"]
[WhiteElo "2466"]
[BlackElo "2229"]

1. d4 {[%clk 00:15:06]} {[%emt 00:00:13]} Nf6 {[%clk 00:15:18]} {[%emt
00:00:02]} 2. Nf3 {[%clk 00:14:52]} {[%emt 00:00:24]} b6 {[%clk 00:15:23]}
{[%emt 00:00:06]} 3. Bg5 {[%clk 00:14:44]} {[%emt 00:00:17]} Ne4 {[%clk
00:15:21]} {[%emt 00:00:12]} 4. Bh4 {[%clk 00:14:05]} {[%emt 00:00:49]} Bb7
{[%clk 00:15:11]} {[%emt 00:00:21]} 5. e3 {[%clk 00:14:05]} {[%emt 00:00:10]}
c5 {[%clk 00:14:49]} {[%emt 00:00:32]} 6. Bd3 {[%clk 00:12:17]} {[%emt
00:01:57]} d5 {[%clk 00:14:33]} {[%emt 00:00:27]} 7. O-O {[%clk 00:09:56]}
{[%emt 00:02:31]} Nd7 {[%clk 00:13:45]} {[%emt 00:00:58]} 8. Ne5 {[%clk
00:07:10]} {[%emt 00:02:55]} Nxe5 {[%clk 00:12:19]} {[%emt 00:01:36]} 9. dxe5
{[%clk 00:07:19]} {[%emt 00:00:02]} c4 {[%clk 00:10:56]} {[%emt 00:01:32]} 10.
Bxe4 {[%clk 00:06:45]} {[%emt 00:00:44]} dxe4 {[%clk 00:11:05]} {[%emt
00:00:02]} 11. e6 {[%clk 00:06:44]} {[%emt 00:00:10]} fxe6 {[%clk 00:06:41]}
{[%emt 00:04:34]} 12. Qh5+ {[%clk 00:06:32]} {[%emt 00:00:22]} g6 {[%clk
00:06:44]} {[%emt 00:00:08]} 13. Qe5 {[%clk 00:06:16]} {[%emt 00:00:26]} Rg8
{[%clk 00:06:50]} {[%emt 00:00:03]} 14. Qxe6 {[%clk 00:04:58]} {[%emt
00:01:28]} Bd5 {[%clk 00:05:24]} {[%emt 00:01:36]} 15. Qh3 {[%clk 00:05:07]}
{[%emt 00:00:02]} Qd7 {[%clk 00:05:27]} {[%emt 00:00:07]} 16. Qxd7+ {[%clk
00:04:37]} {[%emt 00:00:40]} Kxd7 {[%emt 00:00:02]} 17. Rd1 {[%clk 00:03:35]}
{[%emt 00:01:11]} Ke6 {[%clk 00:04:25]} {[%emt 00:01:21]} 18. Nc3 {[%clk
00:03:32]} {[%emt 00:00:13]} Bc6 {[%clk 00:04:33]} {[%emt 00:00:02]} 19. Rd4
{[%clk 00:03:32]} {[%emt 00:00:10]} b5 {[%clk 00:02:48]} {[%emt 00:01:55]} 20.
Nxe4 {[%clk 00:03:37]} {[%emt 00:00:05]} h6 {[%clk 00:02:46]} {[%emt 00:00:12]}
21. Nc5+ {[%clk 00:02:49]} {[%emt 00:00:58]} Kf7 {[%clk 00:02:55]} {[%emt
00:00:01]} 22. c3 {[%clk 00:01:38]} {[%emt 00:01:21]} e5 {[%clk 00:03:00]}
{[%emt 00:00:05]} 23. Rd7+ {[%clk 00:01:12]} {[%emt 00:00:36]} Bxd7 {[%clk
00:02:59]} {[%emt 00:00:11]} 24. Nxd7 {[%clk 00:01:22]} Ke6 {[%clk 00:02:52]}
{[%emt 00:00:18]} 25. Nxf8+ {[%clk 00:00:50]} {[%emt 00:00:41]} Rgxf8 {[%clk
00:03:00]} {[%emt 00:00:02]} 26. a4 {[%clk 00:00:59]} a6 {[%clk 00:02:58]}
{[%emt 00:00:12]} 27. f3 {[%clk 00:01:07]} {[%emt 00:00:01]} Rfb8 {[%clk
00:02:51]} {[%emt 00:00:18]} 28. e4 {[%clk 00:00:50]} {[%emt 00:00:26]} bxa4
{[%clk 00:01:38]} {[%emt 00:01:23]} 29. Rxa4 {[%clk 00:00:45]} {[%emt
00:00:15]} Rxb2 {[%clk 00:01:47]} {[%emt 00:00:01]} 30. h3 {[%clk 00:00:27]}
{[%emt 00:00:28]} a5 {[%clk 00:01:23]} {[%emt 00:00:35]} 31. Rxc4 {[%clk
00:00:32]} {[%emt 00:00:04]} a4 {[%clk 00:01:28]} {[%emt 00:00:06]} 32. Rc6+
{[%clk 00:00:36]} {[%emt 00:00:06]} Kd7 {[%clk 00:01:37]} {[%emt 00:00:01]} 33.
Rxg6 {[%clk 00:00:45]} {[%emt 00:00:02]} a3 {[%clk 00:01:45]} {[%emt 00:00:01]}
34. Rg7+ {[%clk 00:00:54]} {[%emt 00:00:01]} Kc6 {[%clk 00:01:54]} {[%emt
00:00:01]} 35. Rg6+ {[%clk 00:00:50]} {[%emt 00:00:13]} Kb5 {[%clk 00:02:00]}
{[%emt 00:00:05]} 0-1